bitfinex/quotes_BTCUSD_20240906
["timestamp","ask_amount","ask_price","bid_price","bid_amount"]
[1725589524341,0.000816,56912.0,56908.0,0.23580584]
[1725589524342,0.176527,56912.0,56908.0,0.23580584]
[1725589524551,0.176527,56912.0,56911.0,0.01]
[1725589524993,0.176527,56912.0,56911.0,0.03166685]
[1725589525746,0.176527,56912.0,56911.0,0.02166685]
[1725589525747,1.492584,56912.0,56911.0,0.02166685]
[1725589525958,1.492584,56912.0,56911.0,0.04966685]
[1725589526177,1.492584,56912.0,56911.0,0.014]
[1725589526438,1.492584,56912.0,56909.0,0.02]
[1725589526439,0.87858,56910.0,56909.0,0.02]
[1725589526636,0.97858,56910.0,56909.0,0.02]
[1725589527547,0.275716,56910.0,56909.0,0.02]
[1725589527797,0.275716,56910.0,56909.0,0.01809666]
[1725589527798,0.788948,56910.0,56909.0,0.01809666]
[1725589528016,0.527212,56903.0,56902.0,0.02]
[1725589528230,0.878687,56903.0,56902.0,0.02]
[1725589528681,1.230162,56903.0,56902.0,0.02]
[1725589528861,1.303462,56903.0,56902.0,0.02]
[1725589529566,1.303462,56903.0,56902.0,0.034]
[1725589529981,1.303462,56903.0,56902.0,0.043]
[1725589530229,1.743437,56903.0,56902.0,0.023]
[1725589531113,1.743437,56903.0,56902.0,0.014]
[1725589531327,1.743437,56903.0,56897.0,0.02]
[1725589531328,1.230271,56898.0,56897.0,0.02]
[1725589531976,1.230271,56898.0,56897.0,0.01]
[1725589532428,1.230271,56898.0,56897.0,0.02]
[1725589532844,1.230271,56898.0,56897.0,0.031]
[1725589533060,1.230271,56898.0,56897.0,0.016]
[1725589533282,1.843577,56898.0,56897.0,0.016]
[1725589533719,1.492071,56898.0,56897.0,0.016]
[1725589533935,1.492071,56898.0,56897.0,0.026]
[1725589535046,1.492071,56898.0,56897.0,0.01]
[1725589535287,1.492071,56898.0,56897.0,0.015]
[1725589535570,1.492071,56898.0,56897.0,0.027]
[1725589535735,1.492071,56898.0,56897.0,0.022]
[1725589536186,1.492071,56898.0,56897.0,0.028]
[1725589537772,1.330271,56898.0,56897.0,0.028]
[1725589538007,0.978765,56898.0,56897.0,0.028]
[1725589540044,0.978765,56898.0,56897.0,0.018]
[1725589540286,1.483471,56898.0,56897.0,0.018]
[1725589541007,1.483471,56898.0,56897.0,0.028]
[1725589544003,1.330271,56898.0,56897.0,0.028]
[1725589545185,0.978765,56898.0,56897.0,0.028]
[1725589545630,0.627259,56898.0,56897.0,0.04621462]
[1725589546110,0.175753,56898.0,56897.0,0.05621462]
[1725589546347,0.527259,56898.0,56897.0,0.05621462]
[1725589546628,0.000816,56903.0,56902.0,0.02]
[1725589546865,0.000816,56903.0,56902.0,0.547221]
[1725589547088,0.000816,56903.0,56902.0,1.51426439]
[1725589547333,0.000816,56903.0,56902.0,1.86574539]
[1725589547540,0.000816,56903.0,56902.0,1.95134539]
[1725589548210,0.000816,56903.0,56902.0,1.24838339]
[1725589548606,0.000816,56903.0,56902.0,1.59986439]
[1725589548700,0.000816,56903.0,56902.0,1.60586439]
[1725589548927,0.000816,56903.0,56902.0,1.59986439]
[1725589549174,0.000816,56903.0,56902.0,1.07264339]
[1725589549397,0.176553,56903.0,56902.0,0.91844339]
[1725589550052,0.879503,56903.0,56902.0,0.91844339]
[1725589550271,0.879503,56903.0,56902.0,0.94244339]
[1725589550512,1.230978,56903.0,56902.0,0.94244339]
[1725589550737,1.230978,56903.0,56902.0,0.93244339]
[1725589550986,1.230978,56903.0,56902.0,0.94244339]
[1725589551210,1.230978,56903.0,56902.0,0.92244339]
[1725589551428,1.316178,56903.0,56902.0,0.93244339]
[1725589551869,1.316178,56903.0,56902.0,0.92244339]
[1725589552093,1.316178,56903.0,56880.0,0.4672]
[1725589552094,0.879027,56881.0,56880.0,0.4672]
[1725589552466,0.879027,56881.0,56877.0,0.001632]
[1725589552467,0.527443,56878.0,56877.0,0.001632]
[1725589552612,0.979072,56878.0,56877.0,0.001632]
[1725589553076,1.330701,56878.0,56877.0,0.001632]
[1725589554155,1.330701,56878.0,56877.0,0.002632]
[1725589555101,1.330701,56878.0,56877.0,0.001632]
[1725589555322,1.330701,56878.0,56877.0,0.002632]
[1725589556256,1.68233,56878.0,56877.0,0.002632]
[1725589556475,1.70793171,56878.0,56877.0,0.003632]
[1725589556692,1.70793171,56878.0,56877.0,0.002632]
[1725589556919,1.70193171,56878.0,56877.0,0.001632]
[1725589557147,1.35030271,56878.0,56877.0,0.001632]
[1725589557398,1.35630271,56878.0,56877.0,0.002632]
[1725589557614,1.70893171,56878.0,56877.0,0.002632]
[1725589557834,1.91990171,56878.0,56877.0,0.001632]
[1725589558303,1.97916163,56878.0,56877.0,0.002632]
[1725589558523,2.05066163,56878.0,56877.0,0.002632]
[1725589558751,2.40229063,56878.0,56877.0,0.002632]
[1725589559210,2.40229063,56878.0,56865.0,0.00100466]
[1725589559211,1.742968,56866.0,56865.0,0.00100466]
[1725589559466,1.842968,56866.0,56865.0,0.00100466]
[1725589560086,1.865968,56866.0,56865.0,0.00100466]
[1725589560732,1.868968,56866.0,56865.0,0.00100466]
[1725589560953,1.875968,56866.0,56865.0,0.00200466]
[1725589561467,2.418382,56866.0,56865.0,0.00200466]
[1725589561697,2.420382,56866.0,56865.0,0.00200466]
[1725589562005,2.418382,56866.0,56865.0,0.00200466]
[1725589562598,2.066678,56866.0,56865.0,0.00200466]
[1725589562827,2.07759,56866.0,56865.0,0.00200466]
[1725589563291,2.09599181,56866.0,56865.0,0.00200466]
[1725589563514,2.08599181,56866.0,56865.0,0.00100466]
[1725589563749,2.09599181,56866.0,56865.0,0.00200466]
[1725589564408,2.08899181,56866.0,56865.0,0.00100466]
[1725589564670,1.34936581,56866.0,56865.0,0.00100466]
[1725589564908,1.36036581,56866.0,56865.0,0.00200466]
[1725589565147,1.34936581,56866.0,56865.0,0.00100466]
[1725589565827,0.527535,56869.0,56868.0,0.01]
[1725589566082,0.351648,56875.0,56865.0,0.00200466]
[1725589566083,0.88326,56866.0,56865.0,0.00200466]
[1725589566345,1.234964,56866.0,56865.0,0.00200466]
[1725589566576,1.233964,56866.0,56865.0,0.00100466]
[1725589566794,0.88926,56866.0,56865.0,0.00200466]
[1725589567023,0.88626,56866.0,56865.0,0.00200466]
[1725589567269,0.87926,56866.0,56865.0,0.00100466]
[1725589567768,0.87926,56866.0,56865.0,0.01200466]
[1725589567769,0.88026,56866.0,56865.0,0.01200466]
[1725589568894,0.001,56866.0,56865.0,0.02200466]
[1725589569112,0.001,56866.0,56865.0,0.19785966]
[1725589569350,0.001,56866.0,56865.0,0.02200466]
[1725589569568,0.176852,56866.0,56865.0,0.02200466]
[1725589569825,0.001,56866.0,56865.0,0.02200466]
[1725589571124,0.1,56869.0,56865.0,0.02200466]
[1725589571338,0.175852,56866.0,56865.0,0.02200466]
[1725589571556,0.351693,56868.0,56865.0,0.02200466]
[1725589571557,0.175849,56867.0,56865.0,0.02200466]
[1725589572197,0.175848,56867.0,56866.0,0.01]
[1725589572411,0.275848,56867.0,56866.0,0.01]
[1725589573528,0.627545,56867.0,56866.0,0.01]
[1725589573802,0.979242,56867.0,56866.0,0.01]
[1725589574031,0.979242,56867.0,56866.0,0.021]
[1725589574032,0.627545,56867.0,56866.0,0.021]
[1725589574175,0.628545,56867.0,56866.0,0.05149637]
[1725589574822,1.331939,56867.0,56866.0,0.04149637]
[1725589575082,0.980242,56867.0,56866.0,0.04149637]
[1725589576869,1.331939,56867.0,56866.0,0.025]
[1725589577973,0.980242,56867.0,56866.0,0.025]
[1725589578646,0.628545,56867.0,56866.0,0.04148298]
[1725589578851,0.628545,56867.0,56866.0,0.035]
[1725589579108,0.628545,56867.0,56866.0,0.05148181]
[1725589580448,0.628545,56867.0,56866.0,0.04148181]
[1725589580665,1.16998169,56867.0,56866.0,0.025]
[1725589581087,1.52167869,56867.0,56866.0,0.025]
[1725589581302,1.58290755,56867.0,56866.0,0.025]
[1725589581960,1.52167869,56867.0,56866.0,0.025]
[1725589582186,1.52167869,56867.0,56866.0,0.014]
[1725589582420,1.230964,56866.0,56865.0,0.00100466]
[1725589582653,1.330964,56866.0,56865.0,0.00100466]
[1725589583331,1.682668,56866.0,56865.0,0.00100466]
[1725589584003,1.682668,56866.0,56865.0,0.01000466]
[1725589585249,1.682668,56866.0,56865.0,0.01600466]
[1725589586243,1.3982066,56866.0,56865.0,0.01600466]
[1725589586379,1.682668,56866.0,56865.0,0.01600466]
[1725589589188,1.70107913,56866.0,56865.0,0.01600466]
[1725589589935,2.34828499,56866.0,56865.0,0.01600466]
[1725589590168,2.02158099,56866.0,56865.0,0.01600466]
[1725589590652,2.52908499,56866.0,56865.0,0.00700466]
[1725589590929,1.387065,56852.0,56851.0,0.4672]
[1725589591187,0.879567,56846.0,56845.0,0.00164]
[1725589591421,1.231394,56846.0,56845.0,0.00164]
[1725589591650,1.331394,56846.0,56845.0,0.00164]
[1725589593037,1.331394,56846.0,56845.0,0.00464]
[1725589593777,0.979567,56846.0,56845.0,0.00464]
[1725589594219,0.979567,56846.0,56845.0,0.09164]
[1725589594442,0.980567,56846.0,56845.0,0.10864]
[1725589594667,0.980567,56846.0,56845.0,0.18024]
[1725589596309,0.980567,56846.0,56845.0,0.01164]
[1725589596310,1.332394,56846.0,56845.0,0.01164]
[1725589596522,1.43580808,56846.0,56845.0,0.01164]
[1725589597279,1.43580808,56846.0,56845.0,0.00464]
[1725589597280,1.43480808,56846.0,56845.0,0.00464]
[1725589597738,1.43580808,56846.0,56845.0,0.01164]
[1725589598176,1.43580808,56846.0,56845.0,0.00864]
[1725589598397,1.97922608,56846.0,56845.0,0.00864]
[1725589598640,1.71745308,56846.0,56845.0,0.01164]
[1725589600763,2.07589308,56846.0,56845.0,0.01164]
[1725589602865,1.41990808,56846.0,56845.0,0.01164]
[1725589603105,1.35060808,56846.0,56845.0,0.01164]
[1725589606261,0.99878108,56846.0,56845.0,0.08114]
[1725589607867,0.99878108,56846.0,56845.0,0.01164]
[1725589608589,1.35060808,56846.0,56845.0,0.01164]
[1725589608910,0.99878108,56846.0,56845.0,0.01164]
[1725589609096,1.35060808,56846.0,56845.0,0.01164]
[1725589609319,1.64547808,56846.0,56845.0,0.01164]
[1725589609542,1.99730508,56846.0,56845.0,0.01164]
[1725589610963,0.175941,56837.0,56836.0,0.00652888]
[1725589611233,0.41408408,56846.0,56834.0,0.00164]
[1725589611234,0.1,56845.0,56834.0,0.00164]
[1725589611459,1.231611,56836.0,56834.0,0.00164]
[1725589611932,1.5835,56836.0,56834.0,0.00164]
[1725589612172,1.6835,56836.0,56834.0,0.00164]
[1725589613565,1.8423,56836.0,56834.0,0.00164]
[1725589614037,1.8473,56836.0,56834.0,0.00164]
[1725589614694,1.8563,56836.0,56835.0,0.00262]
[1725589615821,2.2606388,56836.0,56835.0,0.00262]
[1725589617200,2.231189,56836.0,56835.0,0.00262]
[1725589617887,2.222189,56836.0,56835.0,0.00162]
[1725589618197,2.230189,56836.0,56835.0,0.00262]
[1725589618373,1.583527,56835.0,56834.0,0.00164]
[1725589618623,5.08835186,56835.0,56834.0,0.00114433]
[1725589618834,5.44024686,56835.0,56834.0,0.00114433]
[1725589619073,4.69265486,56835.0,56834.0,0.00114433]
[1725589619559,4.78215486,56835.0,56834.0,0.00064866]
[1725589620051,4.78562598,56835.0,56834.0,0.00064866]
[1725589620543,4.78962598,56835.0,56834.0,0.00064866]
[1725589620753,4.79662598,56835.0,56834.0,0.00164866]
[1725589621204,3.434668,56835.0,56834.0,0.00164866]
[1725589621432,3.43813912,56835.0,56834.0,0.00164866]
[1725589621671,3.52881815,56835.0,56834.0,0.00065732]
[1725589622576,2.195183,56835.0,56834.0,0.00065732]
[1725589622787,1.342632,56835.0,56834.0,0.00065732]
[1725589623012,1.242632,56835.0,56834.0,0.00065732]
[1725589624108,1.342632,56835.0,56834.0,0.00065732]
[1725589628149,0.638842,56835.0,56834.0,0.1686862]
[1725589628596,0.990737,56835.0,56834.0,0.18263122]
[1725589628805,0.638842,56835.0,56834.0,0.18263122]
[1725589629013,0.631842,56835.0,56834.0,0.1819739]
[1725589629248,0.627842,56835.0,56834.0,0.1819739]
[1725589629465,0.007,56835.0,56834.0,0.1829739]
[1725589629704,0.007,56835.0,56834.0,0.1869739]
[1725589629915,0.534842,56835.0,56834.0,0.1829739]
[1725589630358,0.535842,56835.0,56834.0,0.1949739]
[1725589630812,0.183947,56835.0,56834.0,0.1949739]
[1725589631023,0.176947,56835.0,56834.0,0.1939739]
[1725589631250,0.176947,56835.0,56834.0,0.2019739]
[1725589631251,0.177947,56835.0,56834.0,0.2019739]
[1725589631697,0.002,56835.0,56834.0,0.3779249]
[1725589631922,0.002,56835.0,56834.0,0.2019739]
[1725589632172,0.177947,56835.0,56834.0,0.2019739]
[1725589633641,0.529842,56835.0,56834.0,0.2019739]
[1725589634299,0.529842,56835.0,56834.0,0.2036079]
[1725589638695,0.002,56835.0,56834.0,0.2036079]
[1725589639004,0.002,56835.0,56834.0,1.27008403]
[1725589639249,0.002,56835.0,56834.0,2.85412846]
[1725589639478,1.05412115,56860.0,56859.0,0.16802888]
[1725589639698,1.07259063,56860.0,56859.0,0.16802888]
[1725589639964,0.54608548,56860.0,56859.0,0.16802888]
[1725589640155,0.527616,56860.0,56859.0,0.18273951]
[1725589640396,0.000817,56865.0,56862.0,0.00652888]
[1725589640706,0.000817,56865.0,56863.0,0.00652888]
[1725589640707,0.527575,56864.0,56863.0,0.00652888]
[1725589640880,0.527575,56864.0,56863.0,0.02123252]
[1725589641113,0.000817,56865.0,56864.0,0.88581888]
[1725589641335,0.000817,56865.0,56864.0,1.39903488]
[1725589641827,0.000817,56865.0,56864.0,1.41373698]
[1725589642063,0.000817,56865.0,56864.0,0.71030498]
[1725589642297,0.002817,56865.0,56864.0,0.71030498]
[1725589642768,0.000817,56865.0,56864.0,0.72430498]
[1725589643221,0.000817,56865.0,56864.0,0.73830498]
[1725589643457,0.000817,56865.0,56864.0,0.38658898]
[1725589643688,0.000817,56865.0,56864.0,0.73830498]
[1725589643916,0.000817,56865.0,56864.0,0.38658898]
[1725589644166,0.000817,56865.0,56864.0,0.73830498]
[1725589644638,0.000817,56865.0,56864.0,0.38658898]
[1725589644871,0.000817,56865.0,56864.0,0.73830498]
[1725589646605,0.000817,56865.0,56864.0,0.38658898]
[1725589647082,0.176672,56865.0,56864.0,0.13793098]
[1725589647335,0.528382,56865.0,56864.0,0.04923098]
[1725589647574,0.528382,56865.0,56864.0,0.03452888]
[1725589647811,0.528382,56865.0,56864.0,0.04918667]
[1725589648047,0.528382,56865.0,56864.0,0.03518667]
[1725589648292,0.528382,56865.0,56864.0,0.03452888]
[1725589648536,0.528382,56865.0,56864.0,0.04913196]
[1725589648537,0.880092,56865.0,56864.0,0.04913196]
[1725589648776,0.880092,56865.0,56864.0,0.03513196]
[1725589649026,0.880092,56865.0,56864.0,0.00652888]
[1725589649298,0.880092,56865.0,56864.0,0.03452888]
[1725589649527,0.880092,56865.0,56864.0,0.02052888]
[1725589649765,1.231802,56865.0,56864.0,0.019]
[1725589650038,1.331802,56865.0,56864.0,0.019]
[1725589650221,1.331802,56865.0,56864.0,0.014]
[1725589650669,1.331802,56865.0,56859.0,0.00652888]
[1725589650670,0.879352,56860.0,56859.0,0.00652888]
[1725589651142,0.879352,56860.0,56859.0,0.02114892]
[1725589651373,0.879352,56860.0,56859.0,0.02115412]
[1725589652318,0.527611,56860.0,56859.0,0.02115412]
[1725589652553,0.879352,56860.0,56859.0,0.02315412]
[1725589653057,1.231093,56860.0,56859.0,0.002]
[1725589653290,1.231093,56860.0,56859.0,0.008]
[1725589653509,1.231093,56860.0,56859.0,0.02342883]
[1725589653733,1.231093,56860.0,56859.0,0.008]
[1725589653964,1.231093,56860.0,56859.0,0.02342883]
[1725589654188,1.231093,56860.0,56859.0,0.008]
[1725589654457,1.231093,56860.0,56859.0,0.02342883]
[1725589654679,1.231093,56860.0,56859.0,0.008]
[1725589655137,1.44091674,56860.0,56859.0,0.008]
[1725589655837,1.44091674,56860.0,56859.0,0.006]
[1725589656081,0.879445,56854.0,56853.0,0.00652888]
[1725589656529,0.527676,56853.0,56852.0,0.00652888]
[1725589656992,0.87946,56853.0,56852.0,0.00652888]
[1725589657415,0.87946,56853.0,56845.0,1.34744043]
[1725589657416,0.87949,56851.0,56850.0,0.00652888]
[1725589657878,0.87949,56851.0,56850.0,0.02197152]
[1725589658099,0.87949,56851.0,56850.0,0.00652888]
[1725589658345,0.87949,56851.0,56850.0,0.02197152]
[1725589658563,0.87949,56851.0,56850.0,0.00652888]
[1725589658809,0.175876,56858.0,56857.0,0.00652888]
[1725589659044,0.879382,56858.0,56857.0,0.00652888]
[1725589659274,0.979382,56858.0,56857.0,0.00652888]
[1725589659527,0.627629,56858.0,56857.0,0.02196078]
[1725589659772,0.35256,56860.0,56859.0,0.00652888]
[1725589659773,0.000817,56860.0,56859.0,0.00652888]
[1725589660102,0.100817,56860.0,56859.0,0.00652888]
[1725589660355,0.100817,56860.0,56859.0,0.0219788]
[1725589660356,0.276687,56860.0,56859.0,0.0219788]
[1725589660502,0.100817,56860.0,56859.0,0.0219788]
[1725589660984,0.100817,56860.0,56859.0,0.1978518]
[1725589661213,0.100817,56860.0,56859.0,0.0219788]
[1725589661452,0.278687,56860.0,56859.0,0.0219788]
[1725589661689,0.630428,56860.0,56859.0,0.0219788]
[1725589661965,0.980169,56860.0,56859.0,0.0219788]
[1725589662196,0.982169,56860.0,56859.0,0.0219788]
[1725589662417,0.982169,56860.0,56859.0,0.0229788]
[1725589663125,1.33391,56860.0,56859.0,0.01644992]
[1725589663353,1.33391,56860.0,56859.0,0.01544992]
[1725589663658,1.33391,56860.0,56850.0,0.1541]
[1725589663659,0.102817,56860.0,56853.0,0.00652888]
[1725589663807,0.527667,56854.0,56853.0,0.00652888]
[1725589664041,1.231223,56854.0,56853.0,0.00652888]
[1725589664990,1.231223,56854.0,56853.0,0.00752888]
[1725589665456,1.231223,56854.0,56853.0,0.00652888]
[1725589665922,1.231223,56854.0,56853.0,0.01452888]
[1725589666511,1.231223,56854.0,56853.0,0.02752888]
[1725589667173,0.1,56859.0,56858.0,0.00652888]
[1725589667433,0.000817,56860.0,56859.0,0.18240188]
[1725589667595,0.000817,56860.0,56859.0,0.53766591]
[1725589667768,0.000817,56860.0,56859.0,0.55312372]
[1725589668315,0.06082506,56869.0,56864.0,0.00652888]
[1725589668549,0.06082506,56869.0,56868.0,0.07782888]
[1725589668550,0.175843,56869.0,56868.0,0.07782888]
[1725589668991,0.175843,56869.0,56868.0,0.09327288]
[1725589669202,0.351665,56873.0,56868.0,0.09327288]
[1725589669421,0.351665,56873.0,56872.0,0.00652888]
[1725589669686,0.451665,56873.0,56872.0,0.00652888]
[1725589669900,0.627495,56873.0,56872.0,0.00652888]
[1725589670257,0.627495,56873.0,56872.0,0.02096675]
[1725589670334,0.627495,56873.0,56872.0,0.00552888]
[1725589670575,0.628495,56873.0,56872.0,0.02196675]
[1725589670838,0.628495,56873.0,56872.0,0.00652888]
[1725589671037,0.27683,56873.0,56872.0,0.02091081]
[1725589671265,0.27683,56873.0,56872.0,0.00552888]
[1725589671487,0.62849,56873.0,56872.0,0.02091081]
[1725589671706,0.62849,56873.0,56872.0,0.00552888]
[1725589672183,0.62849,56873.0,56872.0,0.0209081]
[1725589672402,0.62849,56873.0,56872.0,0.00552888]
[1725589672616,0.62849,56873.0,56872.0,0.0209081]
[1725589672833,0.62849,56873.0,56872.0,0.00552888]
[1725589673056,0.62849,56873.0,56872.0,0.0209081]
[1725589673297,0.62849,56873.0,56872.0,0.00552888]
[1725589673516,0.62849,56873.0,56872.0,0.0209081]
[1725589673729,0.62849,56873.0,56872.0,0.00552888]
[1725589674161,0.98015,56873.0,56872.0,0.00552888]
[1725589674415,0.98015,56873.0,56872.0,0.0209081]
[1725589674641,0.98015,56873.0,56872.0,0.00552888]
[1725589675761,0.98015,56873.0,56869.0,0.00552888]
[1725589675762,0.527518,56870.0,56869.0,0.00552888]
[1725589675976,0.879197,56870.0,56869.0,0.00552888]
[1725589676255,0.527518,56870.0,56869.0,0.02091271]
[1725589676466,0.527518,56870.0,56869.0,0.00552888]
[1725589676686,0.879197,56870.0,56869.0,0.02091271]
[1725589676917,0.879197,56870.0,56869.0,0.00752888]
[1725589677131,0.879197,56870.0,56869.0,0.02291271]
[1725589677815,0.879197,56870.0,56869.0,0.00752888]
[1725589679058,0.89803043,56870.0,56869.0,0.00752888]
[1725589679700,1.24970943,56870.0,56869.0,0.00752888]
[1725589680130,1.24970943,56870.0,56869.0,0.002]
[1725589681258,0.01883343,56870.0,56869.0,0.16332888]
[1725589681563,0.176633,56877.0,56876.0,0.00552888]
[1725589681725,0.528268,56877.0,56876.0,0.00552888]
[1725589681929,0.879903,56877.0,56876.0,0.02166219]
[1725589682170,0.879903,56877.0,56876.0,0.00552888]
[1725589683626,0.879903,56877.0,56876.0,0.00652888]
[1725589683904,0.000816,56877.0,56876.0,0.00652888]
[1725589684375,0.000816,56877.0,56876.0,0.02266219]
[1725589684590,0.176633,56877.0,56876.0,0.02266219]
[1725589685245,0.000816,56877.0,56876.0,0.02266219]
[1725589685909,0.000816,56877.0,56876.0,0.11846219]
[1725589686365,0.000816,56877.0,56876.0,0.28628319]
[1725589686591,0.175813,56879.0,56878.0,0.00552888]
[1725589686841,0.175809,56880.0,56879.0,0.00552888]
[1725589687104,0.175809,56880.0,56876.0,0.10793331]
[1725589687105,0.1,56885.0,56884.0,0.00552888]
[1725589687336,0.06892,56892.0,56887.0,0.00552888]
[1725589687567,0.0189933,56892.0,56889.0,0.00552888]
[1725589687817,0.1947653,56892.0,56889.0,0.00552888]
[1725589688051,0.1947653,56892.0,56890.0,0.01608817]
[1725589688303,0.176592,56892.0,56890.0,0.01608817]
[1725589688516,0.176592,56892.0,56891.0,0.18130288]
[1725589688517,0.00082,56892.0,56891.0,0.18130288]
[1725589688917,0.00082,56892.0,56891.0,0.19738003]
[1725589689260,0.00082,56892.0,56891.0,0.96847803]
[1725589689497,0.00082,56892.0,56891.0,1.40782703]
[1725589692519,0.00082,56892.0,56891.0,1.05627803]
[1725589693103,0.00082,56892.0,56891.0,1.93651846]
[1725589695657,0.00082,56892.0,56891.0,1.58496946]
[1725589696110,0.00082,56892.0,56891.0,1.93651846]
[1725589696579,0.00082,56892.0,56891.0,1.05764646]
[1725589696844,0.176591,56892.0,56891.0,0.90184646]
[1725589697489,0.00082,56892.0,56891.0,0.90184646]
[1725589697713,0.176591,56892.0,56891.0,0.90184646]
[1725589698210,0.00082,56892.0,56891.0,0.90184646]
[1725589698442,0.00082,56892.0,56891.0,1.78071846]
[1725589698891,0.00082,56892.0,56891.0,2.47127034]
[1725589699140,0.00082,56892.0,56891.0,2.46927034]
[1725589699813,0.00082,56892.0,56891.0,2.48327034]
[1725589700307,0.00082,56892.0,56891.0,2.49727034]
[1725589701280,0.00082,56892.0,56891.0,2.48327034]
[1725589701744,0.00082,56892.0,56891.0,2.31606746]
[1725589704058,0.176591,56892.0,56891.0,0.92984646]
[1725589704309,0.528134,56892.0,56891.0,0.92984646]
[1725589704543,0.879677,56892.0,56891.0,0.92984646]
[1725589705023,0.528134,56892.0,56891.0,0.89976931]
[1725589705434,0.528134,56892.0,56891.0,0.01952888]
[1725589705481,0.879677,56892.0,56891.0,0.02786841]
[1725589705753,0.879677,56892.0,56891.0,0.04186841]
[1725589705978,0.528134,56892.0,56891.0,0.03286841]
[1725589706213,0.528134,56892.0,56891.0,0.01886841]
[1725589706214,0.879677,56892.0,56891.0,0.01886841]
[1725589706440,0.528134,56892.0,56891.0,0.04186841]
[1725589706937,0.879677,56892.0,56891.0,0.04186841]
[1725589707155,0.528134,56892.0,56891.0,0.04186841]
[1725589707630,0.960577,56892.0,56891.0,0.04186841]
[1725589708104,1.31212,56892.0,56891.0,0.04186841]
[1725589709761,1.31212,56892.0,56891.0,0.03633953]
[1725589709980,1.47502,56892.0,56891.0,0.03633953]
[1725589711366,1.47502,56892.0,56891.0,0.02733953]
[1725589711597,1.47502,56892.0,56891.0,0.014]
[1725589711832,1.230463,56889.0,56888.0,0.00552888]
[1725589713137,1.230463,56889.0,56888.0,0.01552888]
[1725589714570,1.230463,56889.0,56888.0,0.01252888]
[1725589714818,1.230463,56889.0,56888.0,0.007]
[1725589714819,1.584024,56889.0,56888.0,0.007]
[1725589715063,1.684024,56889.0,56888.0,0.007]
[1725589715309,0.87898,56884.0,56883.0,0.00552888]
[1725589715765,0.87898,56884.0,56883.0,0.01888067]
[1725589716499,1.230572,56884.0,56883.0,0.01888067]
[1725589716967,1.230572,56884.0,56883.0,0.00552888]
[1725589717643,1.230572,56884.0,56883.0,0.01890907]
[1725589717876,1.293472,56884.0,56883.0,0.00552888]
[1725589718100,1.293472,56884.0,56883.0,0.02190907]
[1725589718330,1.293472,56884.0,56883.0,0.01552888]
[1725589718568,1.293472,56884.0,56883.0,0.02338019]
[1725589718804,1.372072,56884.0,56883.0,0.02338019]
[1725589719036,1.823664,56884.0,56883.0,0.01]
[1725589719520,1.823664,56884.0,56883.0,0.02338019]
[1725589719730,1.823664,56884.0,56883.0,0.01]
[1725589720157,1.823664,56884.0,56883.0,0.003]
[1725589720647,1.823664,56884.0,56883.0,0.01638019]
[1725589720865,1.823664,56884.0,56883.0,0.003]
[1725589721154,2.332108,56884.0,56883.0,0.01638019]
[1725589721380,2.319441,56884.0,56883.0,0.003]
[1725589721598,2.319441,56884.0,56883.0,0.01338019]
[1725589721823,1.582249,56881.0,56880.0,0.88187243]
[1725589722064,1.582249,56881.0,56880.0,0.001632]
[1725589722065,1.750649,56881.0,56880.0,0.001632]
[1725589722715,0.879182,56871.0,56870.0,0.87750131]
[1725589724321,0.879182,56871.0,56870.0,0.89090144]
[1725589724567,1.230855,56871.0,56870.0,0.89090144]
[1725589725031,1.230855,56871.0,56870.0,0.90490144]
[1725589725451,1.230855,56871.0,56870.0,0.91890144]
[1725589727199,1.24985403,56871.0,56870.0,0.91890144]
[1725589727653,0.879182,56871.0,56870.0,0.91890144]
[1725589727872,0.175836,56871.0,56870.0,0.91890144]
[1725589728357,0.527509,56871.0,56870.0,0.91890144]
[1725589730820,0.175836,56871.0,56870.0,0.91890144]
[1725589731034,0.175836,56871.0,56870.0,0.92053344]
[1725589731265,0.527509,56871.0,56870.0,0.92053344]
[1725589731475,0.879182,56871.0,56870.0,0.92053344]
[1725589732179,0.175836,56871.0,56870.0,0.04303213]
[1725589735892,0.527509,56871.0,56870.0,0.04303213]
[1725589736464,1.230855,56871.0,56870.0,0.04303213]
[1725589736691,1.298955,56871.0,56870.0,0.04303213]
[1725589737648,1.298955,56871.0,56870.0,0.02903213]
[1725589737859,1.298955,56871.0,56870.0,0.04103213]
[1725589738076,1.298955,56871.0,56870.0,0.027632]
[1725589738298,1.298955,56871.0,56870.0,0.015632]
[1725589738747,1.298955,56871.0,56870.0,0.013632]
[1725589738946,1.298955,56871.0,56870.0,0.027632]
[1725589739869,1.24925375,56871.0,56870.0,0.027632]
[1725589743089,1.25007075,56871.0,56870.0,0.027632]
[1725589748300,1.60174375,56871.0,56870.0,0.027632]
[1725589749615,1.70174375,56871.0,56870.0,0.027632]
[1725589749859,1.88775375,56871.0,56870.0,0.027632]
[1725589750980,1.88775375,56871.0,56870.0,0.015632]
[1725589751511,1.88775375,56871.0,56870.0,0.002632]
[1725589751664,1.88775375,56871.0,56870.0,0.003632]
[1725589751863,1.88775375,56871.0,56870.0,0.002632]
[1725589752320,1.88975375,56871.0,56870.0,0.002632]
[1725589752547,1.70374375,56871.0,56870.0,0.002632]
[1725589753013,1.35007075,56871.0,56870.0,0.001632]
[1725589754417,1.35307075,56871.0,56870.0,0.001632]
[1725589754877,1.35007075,56871.0,56870.0,0.001632]
[1725589755543,1.35007075,56871.0,56870.0,0.005632]
[1725589756096,1.35007075,56871.0,56870.0,0.013632]
[1725589757313,0.99839775,56871.0,56870.0,0.013632]
[1725589757793,0.276653,56871.0,56870.0,0.013632]
[1725589757894,0.276653,56871.0,56870.0,0.02784312]
[1725589758039,0.628326,56871.0,56870.0,0.02784312]
[1725589759221,0.979999,56871.0,56870.0,0.02784312]
[1725589761004,0.628326,56871.0,56870.0,0.02784312]
[1725589761434,0.276653,56871.0,56870.0,0.02784312]
[1725589761643,0.000817,56871.0,56870.0,0.26718212]
[1725589761873,0.000817,56871.0,56870.0,0.61886112]
[1725589762760,0.000817,56871.0,56870.0,0.24959831]